[Event "17th Paracin Open 2024"]
[Site "Paracin"]
[Date "2024.07.06"]
[Round "4.7"]
[White "Damjanovic, Vuk"]
[Black "Fernandez, Daniel Howard"]
[Result "0-1"]
[ECO "A46"]
[WhiteElo "2361"]
[BlackElo "2526"]
[Annotator "TA"]
[PlyCount "98"]
[EventDate "2024.07.02"]
[EventType "swiss"]
[EventCountry "SRB"]
[SourceTitle "playchess.com"]
[Source "ChessBase"]
[SourceQuality "1"]
[TimeControl "5400+30"]

{[%evp 9,98,8,48,50,137,107,100,22,34,0,47,-8,-21,-20,13,0,0,-40,-9,-52,-53,-59,-27,-18,-26,-53,-55,-65,-54,-79,-72,-72,-41,-28,-37,-39,-47,-19,-36,-40,0,0,0,0,0,0,0,-2,0,-45,0,-53,-45,-76,-37,-49,-41,-168,-167,-181,-163,-156,-85,-94,-79,-98,-8,-555,-592,-641,-639,-694,-704,-716,-686,-678,-614,-730,-1436,-757,-693,-2940,-1428,-29959,-29958,-29975,-29976,-29982,-29963,-29983,-29979]} 1. d4 {[%emt 0:02:32]} a6 {[%emt 0:08:21]} 2. g3 {[%emt 0:01:33]} e6 {[%emt 0:01:10]} 3. Bg2 {[%emt 0:02:37]} c5 {[%emt 0:00:40]} 4. Nf3 {[%emt 0:04:25]} Nf6 {[%emt 0:06:45]} 5. O-O {[%emt 0:02:52]} Nc6 {[%emt 0:03:22]} 6. c4 {[%emt 0:02:31]} b5 {[%emt 0:04:35]} (6... d5 $14) 7. d5 {[%emt 0:01:34]} Na5 {[%emt 1:09:07]} 8. cxb5 {[%emt 0:12:09]} (8. dxe6 $16 fxe6 9. Ng5) 8... Nxd5 $11 {[%emt 0:00:00]} 9. e4 {[%emt 0:00:14]} Nc7 {[%emt 0:00:00]} (9... Nb6 $11) 10. bxa6 {[%emt 0:04:08]} (10. b6 $14 Nb5 11. Be3 (11. a4 Nd6 $14)) 10... Bxa6 {[%emt 0:00:00]} 11. Re1 {[%emt 0:00:11]} d6 {[%emt 0:00:00]} 12. Nc3 {[%emt 0:01:17] aiming for Qa4+.} Nc6 {[%emt 0:00:00]} 13. b3 {[%emt 0:15:57][%cal Oc3d5]} Be7 {[%emt 0:00:00]} 14. Bb2 {[%emt 0:00:04]} O-O {[%emt 0:00:00]} 15. h4 {[%emt 0:06:13]} Nb5 {[%emt 0:00:00]} 16. Nxb5 {[%emt 0:03:27]} Bxb5 {[%emt 0:00:00]} 17. Bf1 {[%emt 0:02:08]} Bxf1 {[%emt 0:00:00]} 18. Rxf1 {[%emt 0:00:10]} Ra6 {[%emt 0:00:00]} 19. h5 {[%emt 0:03:04][%cal Oh5h6]} Qa8 {[%emt 0:00:00]} 20. a3 {[%emt 0:01:12]} f5 {[%emt 0:00:00]} 21. exf5 {[%emt 0:03:02]} Rxf5 {[%emt 0:00:00]} 22. Qe2 {[%emt 0:00:48]} Nd8 {[%emt 0:00:00][%cal Bc6d8,Bd8f7,Bf7d6][%mdl 32]} 23. Nd2 {[%emt 0:00:44]} d5 {[%emt 0:00:00]} 24. Rae1 {[%emt 0:04:54]} Bf6 {[%emt 0:00:00]} (24... Qb7 {seems wilder.} 25. a4 c4 26. h6 gxh6 27. Rb1 cxb3 28. Bd4 Rxa4 29. Nxb3 Qd7) 25. Bxf6 {[%emt 0:00:54]} Rxf6 {[%emt 0:00:00]} 26. Rc1 {[%emt 0:02:16]} Rc6 {[%emt 0:00:00]} 27. a4 {[%emt 0:01:04]} Nf7 {[%emt 0:00:00]} 28. f4 {[%emt 0:02:04]} Nd6 {[%emt 0:00:00]} 29. g4 {[%emt 0:01:24] Wards off Nf5} h6 {[%emt 0:00:00]} 30. Qe5 {[%emt 0:03:37]} (30. g5 $11 hxg5 31. fxg5 Rxf1+ 32. Rxf1) 30... Qb7 $15 {[%emt 0:00:00]} 31. Qc3 {[%emt 0:03:05]} c4 {[%emt 0:01:18]} 32. Kh2 {[%emt 0:02:45]} Qa7 {[%emt 0:02:27]} 33. Qe5 {[%emt 0:09:40]} (33. Kg2 $15) 33... Nf7 $36 {[%emt 0:01:02][%mdl 2048] Black is really pushing.} 34. Qc3 {[%emt 0:00:43][%cal Rb3c4] [#]} e5 $1 {[%emt 0:04:10][%mdl 512]} 35. bxc4 {[%emt 0:01:31]} Rxf4 {[%emt 0:00:21] Black is more active.} ({Better is} 35... exf4 36. Rce1 Rc8 (36... Qxa4 $2 37. Re8+ Kh7 38. Ra1 $18)) 36. Rxf4 $17 {[%emt 0:00:53]} exf4 {[%emt 0:00:03]} 37. Qf3 {[%emt 0:00:40] Prevents Qf2+} Qe3 {[%emt 0:00:43]} ({Don't do} 37... Qxa4 38. Rb1 Rc8 (38... dxc4 $2 {perishes.} 39. Rb8+ Kh7 40. Qe4+ g6 41. Qe8 $18) 39. Qxf4 $15) (37... Qd4 $17 38. Qe2 Ng5 39. cxd5 f3 (39... Rxc1 40. Qe8+ Kh7 41. Qg6+ Kh8 42. Qe8+ Kh7 43. Qg6+ Kh8 44. Qe8+ Kh7 $11) 40. Qe8+ Kh7) 38. Rc2 {[%emt 0:00:36][%mdl 8192]} (38. Qxe3 $1 $11 {and White has nothing to worry.} fxe3 39. Nf3) 38... Ng5 $19 {[%emt 0:03:46]} 39. Qxe3 {[%emt 0:00:27]} fxe3 {[%emt 0:00:09][%mdl 4096] Endgame. KRN-KRN} 40. Nb3 {[%emt 0:00:18]} dxc4 {[%emt 0:00:15]} (40... Rxc4 41. Rxc4 dxc4 42. Nc1 $16) 41. Nc1 {[%emt 0:00:13] [#]} Nf3+ $1 {[%emt 0:01:41]} 42. Kg3 {[%emt 0:00:02]} Nd4 {[%emt 0:00:07]} 43. Rc3 {[%emt 0:00:01]} e2 {[%emt 0:01:14]} 44. Re3 {[%emt 0:00:01]} c3 {[%emt 0:00:15] Hoping for ...c2.} 45. a5 {[%emt 0:00:01]} c2 {[%emt 0:00:14][%cal Oc6c3] ( -> ...Rc3!)} 46. Re4 {[%emt 0:01:11]} Rf6 {[%emt 0:00:46] Black mates.} 47. Kg2 {[%emt 0:01:44]} Rf1 {[%emt 0:00:31]} 48. Re8+ {[%emt 0:01:01]} Kh7 {[%emt 0:00:29]} 49. Rxe2 {[%emt 0:00:16]} Rxc1 {[%emt 0:00:30] Weighted Error Value: White=0.59/Black=0.15 (very precise) .  Loses game:     	White=1     	---        Mistake:       	White=4     	Black=4      Inaccurate:     	White=5     	Black=6      OK:         	White=12    	Black=9      Best:        	White=1     	Black=3} 0-1

[Event "17th Paracin Open 2024"]
[Site "Paracin"]
[Date "2024.07.06"]
[Round "4.8"]
[White "Kushagra Mohan"]
[Black "Bhattacharyya Soham"]
[Result "1-0"]
[ECO "B12"]
[WhiteElo "2367"]
[BlackElo "2477"]
[Annotator "TA"]
[PlyCount "93"]
[EventDate "2024.07.02"]
[EventType "swiss"]
[EventCountry "SRB"]
[SourceTitle "playchess.com"]
[Source "ChessBase"]
[SourceQuality "1"]
[TimeControl "5400+30"]

{[%evp 25,93,47,45,52,58,71,54,57,114,97,106,103,102,104,291,294,285,289,403,415,765,330,517,488,672,537,488,267,400,294,327,358,397,240,549,561,650,470,1501,1529,1022,543,661,654,754,731,1229,502,497,489,799,767,959,930,1054,1048,950,928,1535,1772,29980,29981,29975,6195,29990,29991,29991,29992,29992,29991]} 1. e4 {[%emt 0:07:06]} c6 {[%emt 0:00:53]} 2. d4 {[%emt 0:00:04]} d5 {[%emt 0:00:06]} 3. e5 {[%emt 0:00:03]} Bf5 {[%emt 0:00:53]} 4. Nf3 {[%emt 0:00:04]} e6 {[%emt 0:00:08]} 5. Be2 {[%emt 0:00:04]} Nd7 {[%emt 0:00:06]} 6. O-O {[%emt 0:00:04]} Ne7 {[%emt 0:00:31] 6...a5 is the hot move.} 7. c3 {[%emt 0:00:04]} h6 {[%emt 0:02:14]} 8. Na3 {[%emt 0:00:05]} Bh7 {[%emt 0:03:05] B12: Caro-Kann: Advance Variation.} 9. Nc2 {[%emt 0:00:02]} c5 {[%emt 0:01:25]} 10. a3 $146 {[%emt 0:04:32]} ({Predecessor:} 10. dxc5 Nxc5 11. Ncd4 a6 12. Be3 Ng6 13. c4 dxc4 14. Bxc4 Be7 15. Nb3 Qxd1 16. Rfxd1 {0-1 Saric,I (2657)-Carlsen,M (2835) Zagreb SuperUnited Blitz 2023 (13)}) 10... a5 {[%emt 0:10:27]} 11. dxc5 {[%emt 0:06:19]} Nc6 {[%emt 0:02:34]} 12. b4 {[%emt 0:04:35]} Bxc2 {[%emt 0:15:23]} 13. Qxc2 {[%emt 0:00:06]} axb4 {[%emt 0:00:04]} 14. cxb4 {[%emt 0:00:09]} Nxb4 {[%emt 0:00:06]} 15. axb4 {[%emt 0:10:50]} Rxa1 {[%emt 0:00:08]} 16. Nd4 {[%emt 0:00:04]} Be7 {[%emt 0:15:44]} (16... Nxe5 $2 17. Qb2 Ra8 18. Nxe6 fxe6 19. Qxe5 $18) (16... Qc8 $14) 17. Nxe6 $1 $16 {[%emt 0:04:24]} fxe6 {[%emt 0:00:06]} 18. Qg6+ {[%emt 0:00:03]} Kf8 {[%emt 0:00:06]} 19. Qxe6 {[%emt 0:00:23]} Nxe5 $2 {[%emt 0:19:45]} (19... Bxc5 $16 {was called for.} 20. bxc5 Nxc5 21. Qf5+ Kg8) 20. Qxe5 $18 {[%emt 0:00:39]} Bf6 {[%emt 0:00:07] [#]} 21. Qf5 $1 {[%emt 0:02:42]} h5 {[%emt 0:11:02]} 22. Bf3 {[%emt 0:02:59]} (22. Bxh5 Rxh5 23. Qxh5 Qd7 $18) 22... d4 {[%emt 0:03:05]} (22... Qe8 $142 23. Bxd5 (23. Qxd5 g5 $18) 23... Qe5 24. Qc8+ Qe8 25. Qxb7 Qe7 26. Qb8+ Qe8) 23. Bxb7 {[%emt 0:09:23]} (23. Bxh5 Rxh5 24. Qxh5 d3 $16) (23. Bf4 $142 {Intending Bd6+ and mate.} Rxf1+ 24. Kxf1) 23... d3 {[%emt 0:03:45]} (23... Qe8 $142 24. c6 Kf7) 24. Bd5 $18 {[%emt 0:01:06]} g5 {[%emt 0:04:15]} 25. Qxd3 {[%emt 0:05:48]} Kg7 {[%emt 0:00:25]} 26. g3 {[%emt 0:01:22]} (26. h4 $142) 26... h4 {[%emt 0:01:50]} (26... Re8 $142 27. Be3 Rxf1+ 28. Kxf1 Re5) 27. Be3 {[%emt 0:03:24]} Rxf1+ {[%emt 0:00:16]} 28. Kxf1 {[%emt 0:00:01]} Qd7 {[%emt 0:01:03]} 29. Be4 {[%emt 0:02:04]} Qa4 $2 {[%emt 0:01:27]} (29... Qh3+ {is more resistant.} 30. Bg2 Qe6) 30. Bd4 $18 {[%emt 0:00:51]} Rf8 {[%emt 0:01:04]} 31. Qd2 {[%emt 0:02:02]} Kh6 {[%emt 0:02:58]} (31... Qa6+ $142 32. Bd3 Qe6 33. Qxg5+ Kf7 34. Qxf6+ Qxf6 35. Bxf6 Kxf6 36. gxh4 Rh8) 32. Bxf6 $18 {[%emt 0:01:29]} Qa6+ {[%emt 0:00:51]} 33. Bd3 {[%emt 0:05:09]} Qxf6 {[%emt 0:00:03]} 34. gxh4 {[%emt 0:00:06]} Qa1+ {[%emt 0:00:45]} 35. Qe1 {[%emt 0:00:12]} Qd4 {[%emt 0:00:30]} 36. hxg5+ {[%emt 0:04:33]} (36. Qe6+ $142 Rf6 37. hxg5+ Kxg5 38. Qg8+ Kh6 39. Qh7+ Kg5 40. Qg7+ Kh4 41. Qg3+ Kh5 42. h4) 36... Kg7 $18 {[%emt 0:00:00]} 37. Qe2 {[%emt 0:01:17]} Qf4 {[%emt 0:00:48]} (37... Re8 $142) 38. Qb2+ $18 {[%emt 0:00:41]} Kf7 {[%emt 0:01:01]} 39. g6+ {[%emt 0:00:59]} ({Less strong is} 39. Qf6+ Qxf6 40. gxf6 Kxf6 $18) 39... Kg8 {[%emt 0:00:27]} 40. b5 {[%emt 0:02:35]} Qg4 {[%emt 0:00:32]} 41. Qa2+ {[%emt 0:02:20]} Kh8 {[%emt 0:00:28]} 42. Qe2 {[%emt 0:00:41]} Qg5 {[%emt 0:00:31]} 43. Qb2+ {[%emt 0:00:16]} Rf6 {[%emt 0:00:01]} 44. b6 {[%emt 0:00:26]} (44. Qd4 $142 Qc1+ 45. Ke2 Kg7 46. b6 Kg8 47. Qd8+ (47. Qxf6 Qe1+ 48. Kxe1 $11) 47... Rf8 48. Qd5+ Kg7 49. Qd4+ Kg8 50. Bc4+ Qxc4+ 51. Qxc4+ Kg7 52. Qe6) 44... Qh4 {[%emt 0:01:00]} 45. b7 {[%emt 0:00:20]} Qh3+ {[%emt 0:00:18]} 46. Ke1 {[%emt 0:00:06]} Qe6+ {[%emt 0:00:11]} 47. Be2 {[%emt 0:00:14]} 1-0

[Event "17th Paracin Open 2024"]
[Site "Paracin"]
[Date "2024.07.06"]
[Round "4.9"]
[White "Prohaszka, Peter"]
[Black "Tippa, Aswath Srisai"]
[Result "1/2-1/2"]
[ECO "D35"]
[WhiteElo "2577"]
[BlackElo "1647"]
[Annotator "TA"]
[PlyCount "114"]
[EventDate "2024.07.02"]
[EventType "swiss"]
[EventCountry "SRB"]
[SourceTitle "playchess.com"]
[Source "ChessBase"]
[SourceQuality "1"]
[TimeControl "5400+30"]

{[%evp 12,114,33,26,43,47,45,20,31,37,32,14,31,9,6,25,8,-19,0,-7,-8,-29,-15,-33,-24,-42,-35,-36,-30,-37,-29,-55,-53,-37,-41,-46,-45,-50,-45,-44,-54,-46,-47,-45,-41,-52,-24,-19,-11,-18,0,0,0,0,0,0,0,0,0,0,16,14,14,14,27,23,58,0,0,0,0,8,28,12,333,547,543,489,1608,2398,4627,4627,4627,0,0,0,0,0,0,0,0,0,0,0,0,0,0,0,0,0,0,0,0,0,0]} 1. d4 {[%emt 0:00:03]} d5 {[%emt 0:03:02]} 2. c4 {[%emt 0:00:16]} e6 {[%emt 0:00:08]} 3. Nc3 {[%emt 0:00:19]} Nf6 {[%emt 0:00:11]} 4. cxd5 {[%emt 0:00:30]} exd5 {[%emt 0:00:10]} 5. Bg5 {[%emt 0:00:17][%cal Bc1g5,Bg5h4,Bh4g3][%mdl 32]} Bb4 {[%emt 0:00:20]} 6. e3 {[%emt 0:00:25]} h6 {[%emt 0:00:10]} 7. Bh4 {[%emt 0:00:05]} g5 {[%emt 0:00:08]} 8. Bg3 {[%emt 0:00:02]} Ne4 {[%emt 0:00:10]} 9. Qc2 {[%emt 0:00:59]} h5 {[%emt 0:00:19]} 10. f3 {[%emt 0:01:07]} Nxg3 {[%emt 0:00:09]} 11. hxg3 {[%emt 0:00:02]} Nc6 {[%emt 0:00:14]} 12. a3 {[%emt 0:05:16]} Bxc3+ {[%emt 0:00:43]} 13. Qxc3 {[%emt 0:01:24]} Qd6 {[%emt 0:00:08] [#]} 14. g4 {[%emt 0:02:54]} h4 {[%emt 0:01:01]} (14... Qg3+ 15. Kd1) 15. O-O-O {[%emt 0:11:31]} Bd7 {[%emt 0:00:20]} 16. Nh3 {[%emt 0:00:22]} f6 {[%emt 0:00:08]} 17. Bd3 {[%emt 0:01:05]} O-O-O {[%emt 0:00:42]} 18. Rhe1 {[%emt 0:01:40]} Kb8 {[%emt 0:05:48]} 19. Kb1 {[%emt 0:04:07]} Ne7 {[%emt 0:03:53]} 20. Rc1 {[%emt 0:15:15]} c6 {[%emt 0:01:58]} 21. b4 {[%emt 0:00:56]} Rhg8 {[%emt 0:02:08]} 22. Qc5 {[%emt 0:25:00]} Qxc5 {[%emt 0:02:29]} 23. bxc5 {[%emt 0:00:03]} f5 {[%emt 0:00:57]} 24. Nf2 {[%emt 0:00:22]} fxg4 {[%emt 0:03:15]} 25. Nxg4 {[%emt 0:00:01]} Bxg4 {[%emt 0:00:16]} 26. fxg4 {[%emt 0:00:02]} Rgf8 {[%emt 0:00:36]} 27. Rf1 {[%emt 0:01:39]} Ng8 {[%emt 0:02:55]} 28. Kc2 {[%emt 0:12:59]} Rf6 {[%emt 0:08:45]} 29. Rf3 {[%emt 0:02:08]} Rdf8 {[%emt 0:20:01]} 30. Rcf1 {[%emt 0:00:31]} b6 {[%emt 0:01:30]} 31. Kd2 $1 {[%emt 0:06:15]} Kc7 {[%emt 0:01:24]} 32. Ke2 {[%emt 0:00:41]} Rxf3 {[%emt 0:05:19]} 33. gxf3 {[%emt 0:01:19][%cal Bg2f3,Bf3f4,Bf4g5][%mdl 32]} bxc5 {[%emt 0:04:02]} 34. dxc5 $11 {[%emt 0:00:01][%mdl 4096] Endgame. KRB-KRN} Nh6 {[%emt 0:08:05]} 35. Rh1 {[%emt 0:04:31]} Rb8 {[%emt 0:04:18]} 36. f4 {[%emt 0:00:38]} Nxg4 {[%emt 0:01:33] Strongly threatening ...Rb2+.} 37. Kf3 {[%emt 0:00:41]} ({Stronger than} 37. fxg5 Rb2+ 38. Kf1 Nxe3+ (38... Nf2 $2 39. Rh2 $18) 39. Ke1 Ng2+ 40. Kd1 Kd8 $17) 37... Nf6 {[%emt 0:01:03]} 38. fxg5 {[%emt 0:00:35]} Nd7 {[%emt 0:00:28] And now ...Ne5+ would win.} 39. Bh7 {[%emt 0:01:26]} (39. Kf4 $14 Nxc5 40. Bf5) 39... Nxc5 {[%emt 0:02:00]} 40. Rxh4 {[%emt 0:00:54] Hoping for Bf5.} Ne6 {[%emt 0:00:17]} 41. Kg4 {[%emt 0:00:31]} Rb3 {[%emt 0:04:02]} 42. Bf5 {[%emt 0:01:49]} (42. e4 $5) 42... Rxe3 {[%emt 0:01:54][%mdl 8192] [#]} (42... Nxg5 $1 $11 {and Black is okay.} 43. Kxg5 Rxe3) 43. Bxe6 $1 $18 {[%emt 0:00:17]} Rxe6 $11 {[%emt 0:00:01] KR-KR} 44. Kf5 {[%emt 0:00:09] Dodges Re4} Re8 {[%emt 0:00:40]} (44... Re7 $142 45. g6 Kd6) 45. g6 $18 {[%emt 0:00:03] aiming for g7.} c5 {[%emt 0:01:22]} 46. g7 {[%emt 0:00:43] White threatens Rh8 and mate.} Rg8 {[%emt 0:00:01]} 47. Ke6 $2 {[%emt 0:01:25]} ({White should try} 47. Kg6 $18 {Rh8 is the strong threat.} d4 48. a4 (48. Rh8 Rxg7+ 49. Kxg7 d3 $18)) 47... Rxg7 $11 {[%emt 0:03:03] The position is equal.} 48. Kxd5 {[%emt 0:00:01]} Kb6 {[%emt 0:00:17]} 49. Kc4 $1 {[%emt 0:00:22]} Rg6 {[%emt 0:00:07]} 50. Rf4 {[%emt 0:00:31]} a6 {[%emt 0:00:27]} 51. Rh4 {[%emt 0:00:14]} Rc6 {[%emt 0:00:37]} 52. Rh5 {[%emt 0:00:32]} Rg6 {[%emt 0:00:22]} 53. Rh4 {[%emt 0:00:02]} Rg3 {[%emt 0:00:20]} 54. Rh6+ {[%emt 0:00:27]} Ka5 {[%emt 0:00:10]} 55. Kxc5 {[%emt 0:00:03]} Rc3+ {[%emt 0:00:49]} 56. Kd4 {[%emt 0:00:06]} Rxa3 {[%emt 0:00:03]} 57. Kc4 {[%emt 0:00:09]} Rg3 {[%emt 0:00:26] Black escapes into a draw.   Weighted Error Value: White=0.20 (precise) /Black=0.14 (very precise) .  Loses game:     	---       	Black=1      Mistake:       	White=1     	Black=1      Inaccurate:     	White=2     	Black=2      OK:         	White=18    	Black=16     Best:        	White=2     	---        Strong:       	White=3     	---} 1/2-1/2

[Event "17th Paracin Open 2024"]
[Site "Paracin"]
[Date "2024.07.06"]
[Round "4.10"]
[White "Arnav Maheshwari"]
[Black "Sasikiran, Krishnan"]
[Result "1/2-1/2"]
[ECO "A62"]
[WhiteElo "2290"]
[BlackElo "2581"]
[Annotator "TA"]
[PlyCount "64"]
[EventDate "2024.07.02"]
[EventType "swiss"]
[EventCountry "SRB"]
[SourceTitle "playchess.com"]
[Source "ChessBase"]
[SourceQuality "1"]
[TimeControl "5400+30"]

{[%evp 25,64,78,66,66,72,42,44,37,49,46,59,47,69,49,50,43,49,45,65,47,73,29,64,23,33,16,25,25,26,0,0,0,0,0,0,0,0,0,0,0,8]} 1. d4 {[%emt 0:00:23]} Nf6 {[%emt 0:00:15]} 2. c4 {[%emt 0:00:11]} e6 {[%emt 0:00:10]} 3. g3 {[%emt 0:00:11]} c5 {[%emt 0:00:32]} 4. d5 {[%emt 0:00:11]} exd5 {[%emt 0:00:14]} 5. cxd5 {[%emt 0:00:11]} d6 {[%emt 0:00:13]} 6. Nc3 {[%emt 0:00:40]} g6 {[%emt 0:00:16]} 7. Bg2 {[%emt 0:00:11]} Bg7 {[%emt 0:00:08]} 8. Nf3 {[%emt 0:01:00][%cal Bg1f3,Bf3d2,Bd2c4][%mdl 32]} O-O {[%emt 0:00:18]} 9. O-O {[%emt 0:00:50]} Re8 {[%emt 0:00:29]} 10. Nd2 {[%emt 0:08:03]} b6 {[%emt 0:05:05]} 11. a4 {[%emt 0:10:23]} Na6 {[%emt 0:06:52]} 12. Nc4 {[%emt 0:07:12]} Nc7 {[%emt 0:05:40]} 13. Bf4 {[%emt 0:10:30]} Bf8 {[%emt 0:03:26]} 14. e4 {[%emt 0:02:19]} Ba6 {[%emt 0:08:46]} 15. Qb3 {[%emt 0:00:30] White is more active.} Bxc4 {[%emt 0:06:55]} 16. Qxc4 {[%emt 0:00:11] White is slightly better.} Nd7 {[%emt 0:00:35]} 17. Nb5 {[%emt 0:09:53]} Ne5 {[%emt 0:05:04]} 18. Bxe5 {[%emt 0:00:20]} (18. Qe2 $5) 18... dxe5 {[%emt 0:03:45] Black is weak on the light squares} 19. Nxc7 {[%emt 0:01:08]} Qxc7 {[%emt 0:00:04]} 20. b4 {[%emt 0:01:38]} Bd6 {[%emt 0:05:28]} 21. b5 {[%emt 0:03:17]} h5 {[%emt 0:05:01][%cal Bh7h5,Bh5h4][%mdl 32]} 22. Rfc1 {[%emt 0:06:26]} h4 {[%emt 0:03:58]} 23. a5 {[%emt 0:02:02]} Kg7 {[%emt 0:03:00]} 24. axb6 {[%emt 0:01:55]} axb6 {[%emt 0:00:29]} 25. Ra6 {[%emt 0:00:33]} Rab8 {[%emt 0:02:21]} 26. Rca1 {[%emt 0:01:21]} Rb7 {[%emt 0:03:39]} 27. Ra8 {[%emt 0:04:42]} ({Of course not} 27. gxh4 Rh8 $15) 27... Rxa8 {[%emt 0:03:50] The position is equal.} 28. Rxa8 {[%emt 0:00:08]} Ra7 {[%emt 0:00:15]} 29. Rxa7 {[%emt 0:00:15]} Qxa7 {[%emt 0:00:04]} 30. Bf1 {[%emt 0:01:21]} Qa3 {[%emt 0:04:10]} 31. Kg2 {[%emt 0:01:49]} Qb2 {[%emt 0:02:04]} 32. Qe2 {[%emt 0:01:25]} Qxe2 {[%emt 0:04:20] Weighted Error Value: White=0.12 (very precise) /Black=0.08 (flawless) .  Inaccurate:     	White=4     	Black=2      OK:         	White=5     	Black=7} 1/2-1/2

[Event "17th Paracin Open 2024"]
[Site "Paracin"]
[Date "2024.07.06"]
[Round "4.11"]
[White "Manish Anto Cristiano F"]
[Black "Djukic, Nikola"]
[Result "1/2-1/2"]
[ECO "B69"]
[WhiteElo "2307"]
[BlackElo "2532"]
[Annotator "TA"]
[PlyCount "60"]
[EventDate "2024.07.02"]
[EventType "swiss"]
[EventCountry "SRB"]
[SourceTitle "playchess.com"]
[Source "ChessBase"]
[SourceQuality "1"]
[TimeControl "5400+30"]

{[%evp 24,60,40,0,47,43,47,17,31,22,47,29,31,25,44,37,29,0,10,6,29,0,0,-4,48,55,54,0,-1,0,-8,-8,-8,-9,0,0,0,0,0]} 1. e4 {[%emt 0:00:07]} c5 {[%emt 0:00:07]} 2. Nf3 {[%emt 0:00:30]} d6 {[%emt 0:00:06]} 3. d4 {[%emt 0:00:06]} cxd4 {[%emt 0:00:06]} 4. Nxd4 {[%emt 0:00:11]} Nf6 {[%emt 0:00:08]} 5. Nc3 {[%emt 0:00:08]} Nc6 {[%emt 0:00:06]} 6. Bg5 {[%emt 0:00:17]} e6 {[%emt 0:00:08]} 7. Qd2 {[%emt 0:00:17]} a6 {[%emt 0:00:18]} 8. O-O-O {[%emt 0:00:22]} Bd7 {[%emt 0:00:12]} 9. f4 {[%emt 0:00:31][%cal Bf2f4,Bf4f5][%mdl 32]} Be7 {[%emt 0:00:31]} 10. Nf3 {[%emt 0:00:16]} b5 {[%emt 0:00:13]} 11. Bxf6 {[%emt 0:00:39]} gxf6 {[%emt 0:00:17]} 12. f5 {[%emt 0:00:28]} Qb6 {[%emt 0:00:40]} 13. g3 {[%emt 0:00:45]} O-O-O {[%emt 0:00:52]} (13... Rc8 $11) 14. Bh3 {[%emt 0:01:06]} Kb8 {[%emt 0:05:35]} 15. Kb1 {[%emt 0:00:30]} Na5 {[%emt 0:01:33][%cal Bc6a5,Ba5c4,Bc4b6][%mdl 32]} 16. fxe6 {[%emt 0:00:26]} fxe6 {[%emt 0:00:08][%cal Bf7e6,Be6e5][%mdl 32]} 17. Nd4 {[%emt 0:00:31]} b4 $1 {[%emt 0:02:49]} 18. Nce2 {[%emt 0:00:24]} e5 {[%emt 0:03:23][%csl LRd4,LRh3]} (18... Nc4 19. Qd3 d5 20. exd5 exd5 21. Bxd7 Rxd7 22. Nf4 $14) 19. Bxd7 {[%emt 0:01:22]} Rxd7 {[%emt 0:00:26]} 20. Nf5 {[%emt 0:00:24]} Nc4 {[%emt 0:01:24]} 21. Qd3 {[%emt 0:01:09]} Rc8 {[%emt 0:00:33]} 22. Rhf1 {[%emt 0:03:31]} Bf8 {[%emt 0:03:06]} 23. Ka1 {[%emt 0:01:11]} Qb5 {[%emt 0:20:27]} (23... a5 $11) 24. b3 $14 {[%emt 0:06:00]} Nb6 {[%emt 0:11:11]} 25. c4 {[%emt 0:09:45]} (25. Ne3 $14 Bh6 26. Kb1 (26. Rxf6 Qxd3 27. Rxd3 Bxe3 $17)) 25... bxc3 $11 {[%emt 0:00:46] The position is equal.} 26. Nxc3 {[%emt 0:00:12] Excellent horsemanship.} Qa5 {[%emt 0:03:40]} 27. Nd5 {[%emt 0:04:45]} Nxd5 {[%emt 0:00:09]} 28. Qxd5 {[%emt 0:00:11]} Qc3+ {[%emt 0:00:51]} 29. Kb1 {[%emt 0:00:16] [#] Strongly threatening Rc1.} Qc2+ {[%emt 0:00:25]} 30. Ka1 {[%emt 0:00:07] Active counter play!} Qc3+ {[%emt 0:00:06] Weighted Error Value: White=0.15 (very precise) /Black=0.09 (flawless) .  Mistake:       	White=1     	Black=1      Inaccurate:     	White=2     	---        OK:         	White=5     	Black=8      Best:        	---       	Black=3      Strong:       	---       	Black=1} 1/2-1/2